Cogmind - Beta 17 @@@ ROGUE MODE // 2026.08.15 @ 00:22:56 Player: 4R-ZE3 Result: Destroyed by Fusion Bomb Trap Performance ------------- Evolutions (8) 4000 Regions Visited (23) 4600 Robots Destroyed (226) 1130 Value Destroyed (11922) 11922 Prototype IDs (63) 1260 Alien Tech Used (3) 600 Bonus (6016) 6016 TOTAL SCORE: 29528 Bonus ------- High Alert Combat Kills 2050 Follower Combat Kills 1432 Met Data Miner 300 Met Imprinter 300 Was Imprinted 300 Met Warlord at Base 500 MAIN.C Attacked Warlord 500 Warlord Defense Kills 886 Friendly Fire -252 Cogmind --------- Core Integrity 0/1450 Matter 300/300 Energy 99/100 System Corruption 42% Temperature Cool (0) Movement Core (50) Location -2/Research Parts ------- > --- POWER (3) -------- (None) > --- PROPULSION (6) --- (None) > --- UTILITY (10) ----- (None) > --- WEAPON (5) ------- (None) > --- INVENTORY (5) ---- Vortex Chain Reactor Biometal Heavy Treads Peak State ------------ > --- POWER ------------ Zionite Light DM Reactor Particle Reactor Light Quantum Reactor > --- PROPULSION ------- Advanced Myomer Leg Enhanced Biometal Leg Heavy Shield Leg High-density Centrium Leg High-density Centrium Leg > --- UTILITY ---------- Advanced Power Amplifier Advanced Cooling System Huge Storage Unit Advanced Trap Scanner Advanced Sensor Array Advanced Signal Interpreter Experimental Target Analyzer Advanced Reaction Control System Advanced Phase Shifter Experimental Cloaking Device > --- WEAPON ----------- Enhanced Quantum Rifle Enhanced Quantum Rifle Enhanced Quantum Rifle Enhanced Quantum Rifle Enhanced Quantum Rifle > --- INVENTORY -------- Light Quantum Reactor Vortex Chain Reactor Biometal Medium Treads Advanced Heavy Siege Treads Advanced Heavy Siege Treads Experimental Myomer Leg Advanced Cryofiber Web Advanced Cryofiber Web Advanced Cooling System Advanced Particle Charger Advanced ECM Suite Advanced Phase Shifter Layered Heavy Armor Plating Graphene Brace Experimental Thermal Shield Gamma Rifle Gamma Rifle Gamma Rifle Gamma Rifle Enhanced Nova Cannon Enhanced Nova Cannon [Rating: 211] Favorites ----------- Power Improved Ion Engine Engine Improved Ion Engine Power Core Light Nuclear Core Reactor Fusion Reactor Propulsion Armored Treads Treads Armored Treads Leg Advanced Myomer Leg Wheel Compact Wheel Utility Huge Storage Unit Device Advanced Cooling System Storage Huge Storage Unit Processor Improved Signal Interpreter Hackware Hacking Suite Protection Layered Medium Armor Plating Weapon Heavy Assault Rifle Energy Gun Enhanced Quantum Rifle Energy Cannon Enhanced Nova Cannon Ballistic Gun Heavy Assault Rifle Ballistic Cannon Hardcell Cannon Launcher Rocket Launcher Build | -11 -10 -10 -9 -9 -7 -6 -6 -6 -6 -6 -5 -5 -5 -5 -5 -4 -4 -4 -4 -4 -3 -3 -2 ------- Run | Yrd Mat Min Mat Min Zio Pro Fac Low Low Dat Pro Fac Upp Upp Zhi Pro Fac Upp Upp War Pro Res Res Slots Evolved 16 | . . . 2 . . . 6 . . . . 2 . . . . 2 . . . . 2 2 Power 2 | . . . . . . . 1 . . . . . . . . . . . . . . 1 . Propulsion 4 | . . . . . . . 2 . . . . 2 . . . . . . . . . . . Utility 8 | . . . 2 . . . 1 . . . . . . . . . 2 . . . . 1 2 Weapon 2 | . . . . . . . 2 . . . . . . . . . . . . . . . . Parts Attached 230 | 6 8 6 17 . 1 2 14 3 5 . 4 17 2 7 4 10 29 6 1 17 5 10 56 Power 28 | 1 2 2 1 . . . 1 . . . . 3 . 1 . . 1 . . . 2 1 13 Engine 8 | 1 1 2 1 . . . 1 . . . . 1 . 1 . . . . . . . . . Core 2 | . 1 . . . . . . . . . . 1 . . . . . . . . . . . Reactor 18 | . . . . . . . . . . . . 1 . . . . 1 . . . 2 1 13 Propulsion 58 | 2 2 2 5 . . 1 2 3 2 . . 6 . 4 1 7 5 1 . 3 . 1 11 Treads 27 | . 2 1 2 . . 1 2 1 2 . . 4 . . . 6 . . . . . . 6 Leg 21 | . . . . . . . . . . . . 2 . 4 1 . 4 1 . 3 . 1 5 Wheel 10 | 2 . 1 3 . . . . 2 . . . . . . . 1 1 . . . . . . Hover . | . . . . . . . . . . . . . . . . . . . . . . . . Flight . | . . . . . . . . . . . . . . . . . . . . . . . . Utility 69 | 1 3 . 6 . 1 1 4 . . . 2 5 2 . 1 2 8 2 1 7 1 4 18 Device 39 | . 1 . 3 . . 1 1 . . . . 3 2 . . 1 6 . 1 5 1 4 10 Storage 6 | 1 2 . . . . . 1 . . . . 1 . . . . . . . . . . 1 Processor 7 | . . . . . . . 1 . . . 1 . . . . . 2 . . 2 . . 1 Hackware 1 | . . . 1 . . . . . . . . . . . . . . . . . . . . Protection 16 | . . . 2 . 1 . 1 . . . 1 1 . . 1 1 . 2 . . . . 6 Artifact . | . . . . . . . . . . . . . . . . . . . . . . . . Weapon 75 | 2 1 2 5 . . . 7 . 3 . 2 3 . 2 2 1 15 3 . 7 2 4 14 Energy Gun 34 | 1 1 2 2 . . . . . . . . . . . . . 6 2 . 5 1 3 11 Energy Cannon 7 | . . . . . . . . . . . . . . 1 . . . . . 1 1 1 3 Ballistic Gun 29 | 1 . . 3 . . . 7 . 3 . 1 2 . 1 2 1 7 1 . . . . . Ballistic Cannon 1 | . . . . . . . . . . . . . . . . . . . . 1 . . . Launcher 4 | . . . . . . . . . . . 1 1 . . . . 2 . . . . . . Special Weapon . | . . . . . . . . . . . . . . . . . . . . . . . . Impact Weapon . | . . . . . . . . . . . . . . . . . . . . . . . . Slashing Weapon . | . . . . . . . . . . . . . . . . . . . . . . . . Piercing Weapon . | . . . . . . . . . . . . . . . . . . . . . . . . Special Melee Weapon . | . . . . . . . . . . . . . . . . . . . . . . . . Unidentified Prototypes 18 | . . . . . . . . . . . . 4 . 1 2 . 1 . . 3 . 1 6 Corrupted Parts 5 | . . . . . . 2 . . . . . . . . . 2 . . . 1 . . . System Corruption 29 | . . . . . . 9 . . . . . . . . . 10 . . . 10 . . . Parts Lost 105 | . 1 3 2 . . . . . 5 . 10 3 1 11 . 8 7 4 6 . 4 1 39 Power 15 | . 1 . 1 . . . . . . . 2 1 . 1 . 1 . . . . 1 . 7 Propulsion 22 | . . 1 . . . . . . 2 . 4 1 1 3 . 3 2 . 1 . . . 4 Utility 28 | . . . . . . . . . 1 . 1 1 . 1 . 2 3 . 2 . 1 . 16 Weapon 40 | . . 2 1 . . . . . 2 . 3 . . 6 . 2 2 4 3 . 2 1 12 Highest Loss Streak 13 | . 1 2 1 . . . . . 3 . 9 1 1 11 . 6 3 2 6 . 2 1 13 To Critical Strikes 1 | . . . . . . . . . . . . . . 1 . . . . . . . . . Average Backups 19 | 1 8 12 14 15 15 15 14 21 23 23 24 19 24 21 22 23 24 22 20 22 21 21 19 Power 1 | . . . . 1 1 1 . . 1 2 2 . . 1 1 2 1 2 2 2 2 2 2 Propulsion 5 | 1 5 7 4 3 3 3 2 5 5 5 4 3 6 5 4 7 8 4 4 3 4 5 6 Utility 6 | . . 1 4 4 4 3 3 5 5 6 7 9 10 10 11 11 7 9 10 11 9 9 6 Weapon 5 | . 2 2 5 7 7 7 8 9 10 10 9 6 6 4 3 1 5 5 3 2 2 3 4 Tool/Special . | . . . . . . . . . . . . . . . . . . . . . . . . Unused Backups 54 | . . 1 13 1 . 3 3 . 3 . 1 1 2 . . . 6 2 . 2 . . 16 Power 8 | . . . . . . . . . . . 1 1 . . . . 1 . . . . . 5 Propulsion 21 | . . 1 7 . . . 3 . 1 . . . . . . . . . . . . . 9 Utility 13 | . . . . . . 3 . . . . . . 2 . . . 4 1 . 2 . . 1 Weapon 11 | . . . 6 1 . . . . 1 . . . . . . . 1 1 . . . . 1 Tool/Special 1 | . . . . . . . . . 1 . . . . . . . . . . . . . . Average Slot Usage (%) 95 | . 95 98 99 100 100 100 98 100 99 76 98 89 98 92 75 90 95 99 94 93 96 95 89 Engine 6 | . 7 14 11 11 11 11 12 13 13 13 12 . 5 4 5 1 . . . . . . . Reactor 4 | . . . . . . . . . . . . 2 5 5 5 5 9 10 10 10 8 11 11 Treads 16 | . 23 20 15 22 22 22 25 20 25 26 25 27 27 16 . 22 12 . . . . . 4 Leg 8 | . . . . . . . . . . . . 3 5 12 33 7 10 30 28 29 30 27 14 Wheel 1 | . 4 6 6 . . . . 5 . . . . . . . . 3 . . . . . . Device 17 | . 9 14 20 22 22 22 13 13 12 13 12 12 16 16 9 6 21 24 19 16 24 25 24 Storage 6 | . 14 14 11 11 11 11 6 6 6 6 6 5 5 5 5 5 5 5 5 5 5 4 3 Processor 5 | . . . . . . . . 6 6 6 12 7 5 5 5 5 5 5 5 12 5 4 7 Hackware 1 | . . . 9 11 11 11 5 . . . . . . . . . . . . . . . . Protection 1 | . . . 3 . . . 5 6 6 6 . . . . 1 5 2 . 3 . . . 1 Energy Gun 7 | . 22 28 11 . . . . . . . . . . . . . 7 20 12 13 16 18 15 Energy Cannon 1 | . . . . . . . . . . . . . . . 1 5 1 . . 1 6 1 3 Ballistic Gun 14 | . 5 . 10 22 22 22 25 26 25 3 25 21 22 19 7 21 16 3 9 2 . . . Peak Build Rating 211 | 6 13 15 25 24 24 28 55 58 63 59 60 79 80 87 103 103 134 135 128 148 146 165 211 Average Rating 84 | 4 10 12 21 24 23 24 53 55 60 44 58 65 77 75 82 88 110 132 121 134 138 157 190 On Entrance 67 | . 6 11 15 24 24 24 28 55 53 59 59 24 76 80 82 103 81 134 129 101 145 136 165 Avg Prop Armor Cover (%) 6 | . . 14 . . . . . 12 . . . 3 3 3 . 1 12 . . . . . 8 Naked Turns 44 | . . . . . . . . . . . . . . . . . . . . . . . 44 Heaviest Build 207 | 12 29 36 42 40 40 40 127 127 127 121 121 122 121 124 149 149 146 152 147 143 153 159 207 Greatest Support 235 | 32 40 40 40 40 40 50 90 98 96 96 96 140 140 139 145 145 159 161 161 165 158 168 235 Greatest Overweight (x) 8 | . . 2 2 . . . 1 3 1 1 1 1 1 3 1 8 5 . . . . . 2 Average Overweight (x) . | . . . . . . . . 2 1 1 1 . . . . . 1 . . . . . . Largest Inventory Capacity 25 | 8 15 15 15 15 15 15 25 25 25 25 25 25 25 25 25 25 25 25 25 25 25 25 25 Average Capacity 22 | 6 10 15 15 15 15 15 16 25 25 25 25 25 25 25 25 25 25 25 25 25 25 25 24 Most Carried 25 | 3 11 15 15 15 15 15 17 25 25 23 25 25 25 25 25 25 25 25 23 25 25 25 25 Average Carried 20 | 1 8 12 14 15 15 15 14 21 24 23 24 19 24 21 22 23 24 23 22 24 23 23 22 Final Capacity 25 | 8 15 15 15 15 15 15 25 25 25 25 25 25 25 25 25 25 25 25 25 25 25 25 5 Final Carried 25 | 3 11 15 15 15 15 15 16 25 23 23 23 23 25 17 23 23 23 23 22 24 22 25 4 Class Distribution -------------------- 30% | Scavenger-Skirmisher 23% | Mutant 20% | Scavenger-Tank 6% | Tank 5% | Skirmisher 4% | Scavenger-Mutant Dominant Class ---------------- Mutant | -10/Materials Scavenger-Mutant | -10/Mines Mutant | -9/Materials Mutant | -9/Mines Mutant | -7/Zion Mutant | -6/Proximity Caves Scavenger-Tank | -6/Factory Scavenger-Skirmisher | -6/Lower Caves Scavenger-Skirmisher | -6/Lower Caves Scavenger-Mutant | -6/Data Miner Scavenger-Skirmisher | -5/Proximity Caves Scavenger-Skirmisher | -5/Factory Scavenger-Skirmisher | -5/Upper Caves Scavenger-Skirmisher | -5/Upper Caves Mutant | -5/Zhirov Scavenger-Tank | -4/Proximity Caves Scavenger-Tank | -4/Factory Scavenger-Tank | -4/Upper Caves Scavenger-Tank | -4/Upper Caves Derelict-Gunner | -4/Warlord Infiltrator-Tank | -3/Proximity Caves Skirmisher | -3/Research Scavenger-Tank | -2/Research Resources | -11 -10 -10 -9 -9 -7 -6 -6 -6 -6 -6 -5 -5 -5 -5 -5 -4 -4 -4 -4 -4 -3 -3 -2 ----------- Run | Yrd Mat Min Mat Min Zio Pro Fac Low Low Dat Pro Fac Upp Upp Zhi Pro Fac Upp Upp War Pro Res Res Matter Collected 8599 | 214 238 74 441 12 20 66 231 413 564 . 346 519 495 761 196 636 714 380 183 594 343 85 1074 Remotely . | . . . . . . . . . . . . . . . . . . . . . . . . Salvage Created 11803 | . 779 222 541 . . 60 164 360 604 . 264 208 553 658 288 742 627 759 318 393 284 . 3979 Parts 465 | . 34 10 35 . . 4 10 17 21 . 14 15 12 20 5 45 51 29 2 4 7 . 130 Haulers Intercepted 2 | . 1 . 1 . . . . . . . . . . . . . . . . . . . . Recyclers Shooed 2 | . . . . . . . . . . . . 1 . . . . . . . . . . 1 Parts Field Recycled . | . . . . . . . . . . . . . . . . . . . . . . . . Retrieved Matter . | . . . . . . . . . . . . . . . . . . . . . . . . Parts Self-Destructed 143 | . . . . . . 4 . 14 20 . 14 . 8 21 2 42 . 8 1 . 9 . . Prevented 30 | . . . . . . 7 . . . . . . . 2 . . . 20 . . 1 . . Parts Restored . | . . . . . . . . . . . . . . . . . . . . . . . . Kills | -11 -10 -10 -9 -9 -7 -6 -6 -6 -6 -6 -5 -5 -5 -5 -5 -4 -4 -4 -4 -4 -3 -3 -2 ------- Run | Yrd Mat Min Mat Min Zio Pro Fac Low Low Dat Pro Fac Upp Upp Zhi Pro Fac Upp Upp War Pro Res Res Combat Hostiles Destroyed 211 | . 11 8 12 . . 1 3 8 11 . 5 3 14 14 . 16 10 14 12 6 10 . 53 Guns 146 | . 11 8 12 . . 1 3 8 11 . 4 3 4 9 . 15 10 7 2 2 3 . 33 Cannons 16 | . . . . . . . . . . . . . . . . 1 . . . . 3 . 12 AOE 40 | . . . . . . . . . . . 1 . 10 5 . . . 6 10 4 4 . . Classes Destroyed 20 | . 5 3 1 . . . 1 3 1 . 1 1 . . . 2 . 1 . . . . 1 Worker 2 | . . 1 . . . . . . . . . . . . . . . . . . . . 1 Builder 2 | . . . . . . . . . . . . . . . . . . . . . . . 2 Hauler 2 | . 1 . 1 . . . . . . . . . . . . . . . . . . . . Recycler 4 | . 3 . . . . . . . . . . . . . . . . . . . . . 1 Minesweeper 1 | . . . . . . . . . . . 1 . . . . . . . . . . . . Operator 3 | . 1 . 2 . . . . . . . . . . . . . . . . . . . . Drone 1 | . . . . . . . . . . . . . . . . 1 . . . . . . . Watcher 3 | . 1 . . . . . . . . . . . . . . . 1 . . . . . 1 Swarmer 44 | . . 2 4 . . . . 4 . . . . 5 1 . 8 1 4 . . 2 . 13 Grunt 79 | . 11 3 4 . . . . 2 9 . 2 2 7 6 . 2 . 3 6 3 4 . 15 Brawler 11 | . . . . . . . . 1 . . 1 . . 2 . . . . 3 1 . . 3 Duelist 11 | . . . . . . . . . 1 . . . 1 4 . . . 1 2 . 1 . 1 Sentry 17 | . . . 4 . . 1 2 . . . . . 1 1 . . . 1 1 . 2 . 4 Specialist 3 | . . . . . . . . . . . . . . . . 3 . . . . . . . Hunter 10 | . . . . . . . . 1 1 . . . . . . 1 2 2 . . 1 . 2 Programmer 27 | . . . . . . . 1 . . . 2 . . . . 1 7 2 . . . . 14 Heavy 1 | . . . . . . . . . . . . 1 . . . . . . . . . . . Behemoth 4 | . . . . . . . . . . . . . . . . . . 1 . 2 . . 1 Samaritan 4 | . . . . . . . . 1 . . . . 1 . . 2 . . . . . . . Assembled 3 | . . 3 . . . . . . . . . . . . . . . . . . . . . Thug 1 | . . . 1 . . . . . . . . . . . . . . . . . . . . Best Kill Streak 12 | . 3 3 2 . . 1 1 3 4 . 3 2 7 7 . 5 3 5 12 4 4 . 8 Combat Bots Only 12 | . 2 3 2 . . 1 1 3 4 . 3 2 7 7 . 5 3 5 12 4 4 . 8 Max Kills in Single Turn 2 | . 1 1 2 . . 1 1 2 1 . 1 1 2 2 . 2 2 2 2 2 1 . 2 Gunslinging 1 | . . . 1 . . . . 1 . . . . . . . . 1 . . . . . 1 Exploded 2 | . . . . . . . . . . . 1 . 2 2 . . . 2 2 2 1 . . Melee . | . . . . . . . . . . . . . . . . . . . . . . . . Uniques/NPCs Destroyed . | . . . . . . . . . . . . . . . . . . . . . . . . Combat | -11 -10 -10 -9 -9 -7 -6 -6 -6 -6 -6 -5 -5 -5 -5 -5 -4 -4 -4 -4 -4 -3 -3 -2 -------- Run | Yrd Mat Min Mat Min Zio Pro Fac Low Low Dat Pro Fac Upp Upp Zhi Pro Fac Upp Upp War Pro Res Res Hostile Shots Fired 1762 | . 57 25 86 6 . 21 46 31 77 . 126 14 48 153 . 90 118 75 72 7 83 . 627 Missed 617 | . 18 9 24 2 . 12 21 13 17 . 32 3 12 43 . 31 49 26 24 4 47 . 230 Hits 1145 | . 39 16 62 4 . 9 25 18 60 . 94 11 36 110 . 59 69 49 48 3 36 . 397 Melee 32 | . . 5 . . . . . . 4 . . . 3 7 . . . 1 1 . . . 11 Projectile 1113 | . 39 11 62 4 . 9 25 18 56 . 94 11 33 103 . 59 69 48 47 3 36 . 386 AOE 2 | . . . . . . . . . . . . . . . . . 2 . . . . . . Critical Strikes 59 | . . . 5 . . . 1 . 2 . 6 . 1 5 . 1 4 2 5 . 3 . 24 Actively Blocked 16 | . . . . . . . . . . . . . . . . . . . . . . . 16 Part Disruptions 5 | . . . . . . . . . . . . . . . . 2 . . . . . . 3 Damage Taken 22017 | . 494 228 767 45 . 103 254 252 976 . 1945 259 699 1719 . 938 1212 755 1036 119 775 95 9346 Core 2523 | . 67 . 192 . . 19 18 15 71 . 283 19 93 91 . 59 94 60 84 . . . 1358 Absorbed by Shields 814 | . . . 52 . . 40 72 20 180 . . . . 172 . . 5 273 . . . . . Reduced by Siege Mode 410 | . . . . . . . . . . . . . . . . . . . . . . . 410 Ignored by Resistances 1335 | . . . . . . . . . . . . 32 120 425 . 95 282 84 . . . . 297 Regen/Repaired (Parts) 248 | . . . . . . . . . . . . . . . . . . . . 248 . . . Core Remaining (%) 75 | 100 . 73 . . . 47 . . . . 54 . . . . 73 . . . . 79 100 . Volleys Fired 670 | . 56 24 47 2 . 11 10 39 30 . 36 15 32 42 12 31 30 28 11 21 27 8 158 Largest 5 | . 2 2 2 2 . 2 4 4 4 . 4 4 4 4 1 5 5 5 4 4 5 5 5 Hottest 465 | . 115 130 130 46 . 46 126 126 126 . 122 97 102 107 33 212 315 310 183 235 285 368 465 Shots Fired 1825 | . 112 46 94 4 . 22 33 85 117 . 70 51 77 112 12 116 123 84 20 30 68 20 529 Gun 1623 | . 112 46 94 4 . 22 33 85 117 . 66 51 60 97 12 111 120 75 12 20 44 12 430 Cannon 132 | . . . . . . . . . . . . . . 3 . 5 3 . . 3 11 8 99 Launcher 70 | . . . . . . . . . . . 4 . 17 12 . . . 9 8 7 13 . . Special . | . . . . . . . . . . . . . . . . . . . . . . . . Kinetic 831 | . 29 . 32 4 . 22 33 85 117 . 66 51 60 97 12 111 105 . 7 . . . . Thermal 717 | . 83 46 62 . . . . . . . . . . 3 . 5 3 . 3 8 27 11 466 Explosive 70 | . . . . . . . . . . . 4 . 17 12 . . . 9 8 7 13 . . Electromagnetic 190 | . . . . . . . . . . . . . . . . . 15 75 2 12 17 9 60 Entropic 17 | . . . . . . . . . . . . . . . . . . . . 3 11 . 3 Robot Hit Streak 26 | . 10 14 19 9 . 16 10 6 14 . 6 14 17 26 14 13 14 6 9 8 10 14 25 Robot Miss Streak 4 | . 3 3 3 . . 3 4 2 3 . 3 1 3 3 . 3 3 3 1 2 4 1 4 Penetration Max 1 | . . . . . . . . . . . . . . . 1 1 1 . . . . . . Secondary Targets 35 | . 1 . 3 . . . . 2 3 . 1 1 1 6 . 1 3 4 . . . . 9 Max Gunslinging Chain 1 | . 1 . 1 . . . . 1 1 . 1 1 1 1 . 1 1 1 . . . . 1 Shots Hit Robots 1085 | . 80 25 68 4 . 18 17 31 71 . 31 35 47 80 12 60 69 44 17 22 43 12 299 Core Hits 553 | . 32 14 24 2 . 5 7 17 25 . 19 13 39 55 5 34 30 33 40 16 33 5 105 Critical Kills 4 | . . . . . . 1 . 1 1 . . . . . . 1 . . . . . . . Critical Parts Destroyed 5 | . . . . . . . . . . . . . . . 2 1 2 . . . . . . Critical Strikes 32 | . 9 2 1 . . 1 . 1 1 . . . . . 2 2 2 . . 2 5 . 4 Burn 17 | . 9 2 1 . . . . . . . . . . . . . . . . 2 3 . . Destroy 9 | . . . . . . 1 . 1 1 . . . . . 2 2 2 . . . . . . Corrupt 4 | . . . . . . . . . . . . . . . . . . . . . . . 4 Sunder 2 | . . . . . . . . . . . . . . . . . . . . . 2 . . Melee Attacks . | . . . . . . . . . . . . . . . . . . . . . . . . Impact . | . . . . . . . . . . . . . . . . . . . . . . . . Slashing . | . . . . . . . . . . . . . . . . . . . . . . . . Piercing . | . . . . . . . . . . . . . . . . . . . . . . . . Sneak Attacks . | . . . . . . . . . . . . . . . . . . . . . . . . Combat Hostiles . | . . . . . . . . . . . . . . . . . . . . . . . . Follow-up Attacks . | . . . . . . . . . . . . . . . . . . . . . . . . Damage Inflicted 35056 | . 1102 389 1092 56 . 269 429 636 1554 . 980 593 1875 2146 378 1392 1549 2039 2791 1663 2283 212 11628 Guns 22625 | . 1102 389 1084 56 . 269 429 636 1554 . 647 593 635 1322 378 1327 1517 909 199 238 409 116 8816 Cannons 3406 | . . . . . . . . . . . . . . . . 65 32 . . 65 336 96 2812 Explosions 9017 | . . . . . . . . . . . 333 . 1240 824 . . . 1130 2592 1360 1538 . . Melee . | . . . . . . . . . . . . . . . . . . . . . . . . Ramming 8 | . . . 8 . . . . . . . . . . . . . . . . . . . . Kinetic 9902 | . 245 . 354 56 . 269 429 636 1554 . 647 593 635 1322 378 1327 1347 . 110 . . . . Thermal 13904 | . 857 389 730 . . . . . . . . . . . . 65 32 378 52 108 254 190 10849 Explosive 8639 | . . . . . . . . . . . 333 . 1240 824 . . . 752 2592 1360 1538 . . Electromagnetic 2132 | . . . . . . . . . . . . . . . . . 170 909 37 130 155 22 709 Impact . | . . . . . . . . . . . . . . . . . . . . . . . . Slashing . | . . . . . . . . . . . . . . . . . . . . . . . . Piercing . | . . . . . . . . . . . . . . . . . . . . . . . . Entropic 471 | . . . . . . . . . . . . . . . . . . . . 65 336 . 70 Highest Corruption 42 | . . 5 . . . 9 1 1 1 1 3 . . 4 4 15 3 3 3 10 1 2 42 Average Corruption 5 | . . 4 . . . 8 1 1 1 1 2 . . 4 4 10 2 2 3 2 1 2 16 Corruption Purged 3 | . . . . . . . . . . . . . . . . . 3 . . . . . . Corruption Blocked . | . . . . . . . . . . . . . . . . . . . . . . . . Effects 261 | . . 10 . . . . 3 8 10 1 25 . . 13 7 28 5 8 13 1 5 5 119 Message Errors 57 | . . 2 . . . . . . 2 1 7 . . 3 2 6 1 1 3 1 . . 28 Matter Fused 59 | . . 2 . . . . . 3 1 . 6 . . 4 3 10 . 2 2 . 3 2 21 Heat Flow Errors 24 | . . 1 . . . . 1 2 3 . 2 . . . 1 3 . . 2 . . . 9 Energy Discharges 25 | . . 2 . . . . . . 1 . 1 . . . 1 3 1 1 3 . . 1 11 Parts Rejected 5 | . . . . . . . . . . . . . . . . . 1 2 1 . . . 1 Parts Fused 2 | . . . . . . . . . . . . . . . . . . . . . . 1 1 Data Loss (minor) 34 | . . 3 . . . . 1 1 2 . 4 . . 4 . 4 2 1 . . 2 . 10 Data Loss (major) 12 | . . . . . . . . 1 . . 2 . . . . . . . 1 . . 1 7 Misfires 14 | . . . . . . . . 1 . . . . . 2 . 1 . 1 1 . . . 8 Alerts 4 | . . . . . . . . . 1 . 2 . . . . . . . . . . . 1 Misdirections 8 | . . . . . . . . . . . . . . . . 1 . . . . . . 7 Weapon Failures 17 | . . . . . . . 1 . . . 1 . . . . . . . . . . . 15 Overload Shots . | . . . . . . . . . . . . . . . . . . . . . . . . Overflow Damage 377 | . . . . . . . . . . . . . . 6 . . . . 78 21 103 26 143 Projectiles 217 | . . . . . . . . . . . . . . . . . . . . 3 45 26 143 Explosions 160 | . . . . . . . . . . . . . . 6 . . . . 78 18 58 . . Melee . | . . . . . . . . . . . . . . . . . . . . . . . . Knockbacks . | . . . . . . . . . . . . . . . . . . . . . . . . Impact . | . . . . . . . . . . . . . . . . . . . . . . . . Kinetic . | . . . . . . . . . . . . . . . . . . . . . . . . Secondary . | . . . . . . . . . . . . . . . . . . . . . . . . Self-Inflicted Damage 241 | . . . . . . . . . . . . . 98 65 . . . 78 . . . . . Shots 7 | . . . . . . . . . . . . . 3 2 . . . 2 . . . . . Rammed 1 | . . . 1 . . . . . . . . . . . . . . . . . . . . Targets Rammed 1 | . . . 1 . . . . . . . . . . . . . . . . . . . . Kicked . | . . . . . . . . . . . . . . . . . . . . . . . . Crushed . | . . . . . . . . . . . . . . . . . . . . . . . . Highest Temperature 380 | . 127 162 38 . . . 247 181 198 . 161 . 3 14 84 163 192 286 173 42 215 328 380 Average Temperature 63 | . 32 54 9 . . . 116 54 30 . 48 . 3 5 57 43 79 106 60 28 76 173 89 Received Heat Transfer 4596 | . 276 36 274 27 . 24 27 45 358 . 631 99 258 825 . 132 36 24 266 9 108 . 1141 Effects 3 | . . . . . . . . . . . . . . . . . . 3 . . . . . Interference 3 | . . . . . . . . . . . . . . . . . . 3 . . . . . Siege Activations 8 | . . . . . . . . . . . . . . . . . . . . . . . 8 Total Turns 133 | . . . . . . . . . . . . . . . . . . . . . . . 133 Longest Duration 33 | . . . . . . . . . . . . . . . . . . . . . . . 33 Martial Activations . | . . . . . . . . . . . . . . . . . . . . . . . . Shielding Activations . | . . . . . . . . . . . . . . . . . . . . . . . . Robots Disrupted 1 | . . . . . . . . . . . . . . . . . . . . . . 1 . Combat Hostiles 1 | . . . . . . . . . . . . . . . . . . . . . . 1 . Robots Corrupted 3 | . . . . . . . . . . . . . . . . . . 1 . . . . 2 Combat Hostiles 3 | . . . . . . . . . . . . . . . . . . 1 . . . . 2 Parts Fried 10 | . . . . . . . . . . . . . . . . . 1 5 . . 1 . 3 Impact Corruptions . | . . . . . . . . . . . . . . . . . . . . . . . . Robots Melted 7 | . 1 . . . . . . . . . . . . . . . . . . . . . 6 Combat Hostiles 6 | . . . . . . . . . . . . . . . . . . . . . . . 6 Parts Melted 61 | . 4 1 5 . . . . . . . . . . . . . . . . 3 2 . 46 Heat Transferred 17937 | . 2960 1073 1739 . . . . . . . . . . . . 100 50 250 111 350 777 111 10416 Parts Sabotaged . | . . . . . . . . . . . . . . . . . . . . . . . . Parts Stolen . | . . . . . . . . . . . . . . . . . . . . . . . . Parts Stripped . | . . . . . . . . . . . . . . . . . . . . . . . . Power Chain Reactions 3 | . . . . . . . . . . . . . . . . . . 3 . . . . . Alert | -11 -10 -10 -9 -9 -7 -6 -6 -6 -6 -6 -5 -5 -5 -5 -5 -4 -4 -4 -4 -4 -3 -3 -2 ------- Run | Yrd Mat Min Mat Min Zio Pro Fac Low Low Dat Pro Fac Upp Upp Zhi Pro Fac Upp Upp War Pro Res Res Maximum Alert Level 4 | . . . . . . . . . . . . . . . . . 1 . . . . . 4 Low Security (%) 68 | 100 100 100 100 100 . . 100 . . . . 100 . . . . 72 . . . . 100 14 Level 1 5 | . . . . . . . . . . . . . . . . . 27 . . . . . 2 Level 2 3 | . . . . . . . . . . . . . . . . . . . . . . . 10 Level 3 11 | . . . . . . . . . . . . . . . . . . . . . . . 34 Level 4 12 | . . . . . . . . . . . . . . . . . . . . . . . 38 Level 5 . | . . . . . . . . . . . . . . . . . . . . . . . . High Security . | . . . . . . . . . . . . . . . . . . . . . . . . Max Security . | . . . . . . . . . . . . . . . . . . . . . . . . Peak Influence 1536 | . 168 56 127 46 . . 187 . . . . 146 . . . . 344 . . . . 85 1536 Initial 344 | . . 16 . 9 . . 150 . . . . . . . . . 344 . . . . 29 47 Average 329 | . 73 14 42 6 . . 121 . . . . 38 . . . . 140 . . . . 4 871 Influence Increases 8198 | . 471 135 422 56 . 109 333 205 260 . 140 333 320 330 18 355 744 345 250 174 260 119 2819 Destroy 0b10 Robot/C 4760 | . 220 100 240 40 . 60 80 160 220 . 100 180 280 280 . 300 240 280 240 120 200 40 1380 Destroy 0b10 Robot/NC 170 | . 30 5 15 . . 5 . . . . 5 . 10 . 15 10 15 . . . . 10 50 Destroy Leader 856 | . 74 30 82 10 . 10 40 30 40 . 20 30 30 20 . 20 64 50 10 . . 12 284 Allied During Kill 641 | . . . . 6 . 34 45 . . . . 38 . . 3 10 44 . . 24 . 25 412 Successful Hack 57 | . 11 . 10 . . . . . . . . . . . . . 12 . . . . . 24 Select Force Hacks 60 | . 30 . 30 . . . . . . . . . . . . . . . . . . . . Disable Machine 195 | . 15 . 30 . . . 15 . . . . 75 . . . . 30 . . . . . 30 Destroy Structure 469 | . 1 . . . . . 3 . . . . 10 . . . . 24 . . . . 32 399 Advance Influence 450 | . . . . . . . 150 . . . . . . . . . 300 . . . . . . Partial Spotted 45 | . 30 . 15 . . . . . . . . . . . . . . . . . . . . Lose Combat Pursuer 495 | . 60 . . . . . . 15 . . 15 . . 30 . 15 15 15 . 30 60 . 240 Influence Decreases 6662 | . 429 177 396 82 . 109 302 236 238 22 140 253 368 362 18 285 769 339 175 170 346 78 1368 Entered New Map 479 | . . 26 . 17 . . . 13 . 22 . . 30 7 . . 26 18 11 126 130 15 38 Time Decay 4684 | . 419 135 319 65 . 109 262 223 218 . 111 163 328 245 18 207 514 281 104 24 186 43 710 Search Patrol Dispatched 100 | . . . . . . . . . . . . . . . . . 100 . . . . . . Lost Part 858 | . 10 16 10 . . . . . 20 . 29 30 10 110 . 44 59 40 60 . 30 . 390 Lost Ally 474 | . . . . . . . 40 . . . . 60 . . . 34 70 . . 20 . 20 230 Purge Threat 67 | . . . 67 . . . . . . . . . . . . . . . . . . . . Squads Dispatched 40 | . 4 1 4 . . . 1 . . . . 2 . 1 . . 3 . 1 . 1 2 20 Investigation 7 | . 2 1 2 . . . . . . . . . . . . . . . . . . . 2 Extermination 15 | . . . . . . . 1 . . . . 1 . . . . 3 . . . . 1 9 Reinforcement 8 | . 2 . 2 . . . . . . . . 1 . . . . . . . . . . 3 Assault 9 | . . . . . . . . . . . . . . 1 . . . . 1 . 1 . 6 Garrison 1 | . . . . . . . . . . . . . . . . . . . . . . 1 . Intercept . | . . . . . . . . . . . . . . . . . . . . . . . . Searches Triggered 1 | . . . . . . . . . . . . . . . . . 1 . . . . . . Data Miner Redirects 1 | . . . . . . . . . . . . . . . . . . . . . . . 1 Construction Impeded 2 | . . . . . . . . . . . . . . . . . . . . . . . 2 Haulers Reinforced . | . . . . . . . . . . . . . . . . . . . . . . . . Active Scanning Responses . | . . . . . . . . . . . . . . . . . . . . . . . . Cargo Convoy Interrupts 1 | . . . . . . . . . . . . . . . . . . . . . . . 1 Stealth | -11 -10 -10 -9 -9 -7 -6 -6 -6 -6 -6 -5 -5 -5 -5 -5 -4 -4 -4 -4 -4 -3 -3 -2 --------- Run | Yrd Mat Min Mat Min Zio Pro Fac Low Low Dat Pro Fac Upp Upp Zhi Pro Fac Upp Upp War Pro Res Res Distress Signals 16 | . 3 2 2 . . . . . . . . . . . . . . . . 1 . . 8 Communications Jammed . | . . . . . . . . . . . . . . . . . . . . . . . . Distress Signals . | . . . . . . . . . . . . . . . . . . . . . . . . Times Spotted 361 | . 26 11 34 2 . 4 5 9 11 . 12 14 9 12 . 20 19 10 13 20 16 1 113 Peak Tracking Total 18 | . 5 3 8 2 . 2 2 4 4 . 6 4 4 8 . 5 4 4 13 7 9 1 18 Tactical Retreats 23 | . 3 . . . . . . 1 . . 1 . . 1 . 1 1 1 1 2 2 . 9 ECM-based Alert Blocks 2 | . . . . . . . . . . . . . . . . . . . 1 . . . 1 Traps | -11 -10 -10 -9 -9 -7 -6 -6 -6 -6 -6 -5 -5 -5 -5 -5 -4 -4 -4 -4 -4 -3 -3 -2 ------- Run | Yrd Mat Min Mat Min Zio Pro Fac Low Low Dat Pro Fac Upp Upp Zhi Pro Fac Upp Upp War Pro Res Res Traps Triggered 11 | . 1 . 3 . . . 1 . . . . . . . . . 1 . . . . 1 4 Indirectly . | . . . . . . . . . . . . . . . . . . . . . . . . Trap Hack Attempts . | . . . . . . . . . . . . . . . . . . . . . . . . Triggered . | . . . . . . . . . . . . . . . . . . . . . . . . Disarmed . | . . . . . . . . . . . . . . . . . . . . . . . . Reprogrammed . | . . . . . . . . . . . . . . . . . . . . . . . . Reused . | . . . . . . . . . . . . . . . . . . . . . . . . Traps Extracted . | . . . . . . . . . . . . . . . . . . . . . . . . Installed . | . . . . . . . . . . . . . . . . . . . . . . . . Triggered . | . . . . . . . . . . . . . . . . . . . . . . . . Machines | -11 -10 -10 -9 -9 -7 -6 -6 -6 -6 -6 -5 -5 -5 -5 -5 -4 -4 -4 -4 -4 -3 -3 -2 ---------- Run | Yrd Mat Min Mat Min Zio Pro Fac Low Low Dat Pro Fac Upp Upp Zhi Pro Fac Upp Upp War Pro Res Res Machines Disabled 17 | . 1 . 2 . . . 1 1 . . . 5 . . . 1 2 . 1 . 1 . 2 Max in Single Turn 1 | . 1 . 1 . . . 1 1 . . . 1 . . . 1 1 . 1 . 1 . 1 Garrison Access 1 | . . . . . . . . . . . . . . . . . . . . . . . 1 Machines Repaired . | . . . . . . . . . . . . . . . . . . . . . . . . Machines Dismantled . | . . . . . . . . . . . . . . . . . . . . . . . . Machines Sabotaged . | . . . . . . . . . . . . . . . . . . . . . . . . Overloaded Fab Kills . | . . . . . . . . . . . . . . . . . . . . . . . . Hacking | -11 -10 -10 -9 -9 -7 -6 -6 -6 -6 -6 -5 -5 -5 -5 -5 -4 -4 -4 -4 -4 -3 -3 -2 --------- Run | Yrd Mat Min Mat Min Zio Pro Fac Low Low Dat Pro Fac Upp Upp Zhi Pro Fac Upp Upp War Pro Res Res Machines Accessed 38 | . 6 1 8 . . . . . 2 4 . . 1 1 4 . 1 . . 6 . 1 3 Terminals 10 | . 4 . 6 . . . . . . . . . . . . . . . . . . . . Fabricators 1 | . . . . . . . . . . . . . . . . . . . . . . . 1 Repair Stations . | . . . . . . . . . . . . . . . . . . . . . . . . Recycling Units 3 | . 2 . 1 . . . . . . . . . . . . . . . . . . . . Scanalyzers 4 | . . . 1 . . . . . . . . . . . . . 1 . . . . . 2 Garrison Access 1 | . . . . . . . . . . . . . . . . . . . . . . 1 . Total Hacks 118 | . 14 1 23 . . . . . 2 28 . . 1 1 17 . 2 . . 22 . 1 6 Successful 97 | . 8 1 14 . . . . . 2 28 . . 1 1 17 . 1 . . 22 . . 2 Failed 19 | . 5 . 8 . . . . . . . . . . . . . 1 . . . . 1 4 Catastrophic 2 | . . . . . . . . . . . . . . . . . . . . . . . 2 Database Lockouts 2 | . 1 . 1 . . . . . . . . . . . . . . . . . . . . Manual 69 | . 12 . 15 . 1 . 3 . . . . 11 . . . . 8 . . 1 . 4 14 Terminals 23 | . 8 . 15 . . . . . . . . . . . . . . . . . . . . Fabricators 3 | . . . . . . . . . . . . . . . . . . . . . . . 3 Repair Stations . | . . . . . . . . . . . . . . . . . . . . . . . . Recycling Units 7 | . 6 . 1 . . . . . . . . . . . . . . . . . . . . Scanalyzers 12 | . . . 7 . . . . . . . . . . . . . 2 . . . . . 3 Garrison Access 1 | . . . . . . . . . . . . . . . . . . . . . . 1 . Terminal Hacks 80 | . 4 1 4 . . . . . 2 28 . . 1 1 17 . . . . 22 . . . Record 18 | . . . . . . . . . . 11 . . . . 5 . . . . 2 . . . Part Schematic 14 | . . . . . . . . . . 10 . . . . 4 . . . . . . . . Robot Schematic 4 | . . . . . . . . . . 4 . . . . . . . . . . . . . Robot Analysis 8 | . 2 . 2 . . . . . . . . . . . 4 . . . . . . . . Prototype ID Bank 26 | . . . . . . . . . . 3 . . . . 4 . . . . 19 . . . Open Door 6 | . . 1 . . . . . . 2 . . . 1 1 . . . . . 1 . . . Branch Access Points 2 | . 1 . 1 . . . . . . . . . . . . . . . . . . . . Unreport Threat 1 | . . . 1 . . . . . . . . . . . . . . . . . . . . Zone Layout 1 | . 1 . . . . . . . . . . . . . . . . . . . . . . Fabricator Hacks . | . . . . . . . . . . . . . . . . . . . . . . . . Repair Station Hacks . | . . . . . . . . . . . . . . . . . . . . . . . . Recycling Unit Hacks . | . . . . . . . . . . . . . . . . . . . . . . . . Scanalyzer 9 | . . . 6 . . . . . . . . . . . . . 1 . . . . . 2 Retrieve Study 9 | . . . 6 . . . . . . . . . . . . . 1 . . . . . 2 Garrison Access Hacks . | . . . . . . . . . . . . . . . . . . . . . . . . Unauthorized Hacks 8 | . 4 . 4 . . . . . . . . . . . . . . . . . . . . Terminals 6 | . 3 . 3 . . . . . . . . . . . . . . . . . . . . Botnet 6 | . 3 . 3 . . . . . . . . . . . . . . . . . . . . Fabricators . | . . . . . . . . . . . . . . . . . . . . . . . . Repair Stations . | . . . . . . . . . . . . . . . . . . . . . . . . Recycling Units 2 | . 1 . 1 . . . . . . . . . . . . . . . . . . . . Tunnel 2 | . 1 . 1 . . . . . . . . . . . . . . . . . . . . Scanalyzers . | . . . . . . . . . . . . . . . . . . . . . . . . Garrison Access . | . . . . . . . . . . . . . . . . . . . . . . . . Data Cores Recovered 1 | . . . 1 . . . . . . . . . . . . . . . . . . . . Used . | . . . . . . . . . . . . . . . . . . . . . . . . Hacking Detections 13 | . 4 . 4 . . . . . . . . . . . . . 1 . . . . 1 3 Full Trace Events 4 | . 1 . 2 . . . . . . . . . . . . . . . . . . . 1 Feedback Events 1 | . . . . . . . . . . . . . . . . . . . . . . . 1 Corruption 1 | . . . . . . . . . . . . . . . . . . . . . . . 1 Feedback Blocked . | . . . . . . . . . . . . . . . . . . . . . . . . Robot Schematics Acquired 7 | . . . . . 3 . . . . 4 . . . . . . . . . . . . . Robots Built . | . . . . . . . . . . . . . . . . . . . . . . . . Authchips . | . . . . . . . . . . . . . . . . . . . . . . . . Time . | . . . . . . . . . . . . . . . . . . . . . . . . Total Robot Build Rating . | . . . . . . . . . . . . . . . . . . . . . . . . Part Schematics Acquired 27 | . . . . . 13 . . . . 10 . . . . 4 . . . . . . . . Parts Built . | . . . . . . . . . . . . . . . . . . . . . . . . Authchips . | . . . . . . . . . . . . . . . . . . . . . . . . Time . | . . . . . . . . . . . . . . . . . . . . . . . . Total Part Build Rating . | . . . . . . . . . . . . . . . . . . . . . . . . Part Studies Acquired 9 | . . . 6 . . . . . . . . . . . . . 1 . . . . . 2 Parts Repaired . | . . . . . . . . . . . . . . . . . . . . . . . . Time . | . . . . . . . . . . . . . . . . . . . . . . . . Parts Recycled . | . . . . . . . . . . . . . . . . . . . . . . . . Recycled Matter . | . . . . . . . . . . . . . . . . . . . . . . . . Retrieved Matter . | . . . . . . . . . . . . . . . . . . . . . . . . Retrieved Components . | . . . . . . . . . . . . . . . . . . . . . . . . Parts Scanalyzed . | . . . . . . . . . . . . . . . . . . . . . . . . Part Schematics Acquired . | . . . . . . . . . . . . . . . . . . . . . . . . Parts Damaged . | . . . . . . . . . . . . . . . . . . . . . . . . Bothacking | -11 -10 -10 -9 -9 -7 -6 -6 -6 -6 -6 -5 -5 -5 -5 -5 -4 -4 -4 -4 -4 -3 -3 -2 ------------ Run | Yrd Mat Min Mat Min Zio Pro Fac Low Low Dat Pro Fac Upp Upp Zhi Pro Fac Upp Upp War Pro Res Res Used RIF Installer . | . . . . . . . . . . . . . . . . . . . . . . . . Robots Hacked . | . . . . . . . . . . . . . . . . . . . . . . . . Non-combat . | . . . . . . . . . . . . . . . . . . . . . . . . Combat . | . . . . . . . . . . . . . . . . . . . . . . . . Robot Hacks Applied . | . . . . . . . . . . . . . . . . . . . . . . . . Relay Couplers Released 13 | . . . . . . . . . . . . . . . . . 3 . . . . . 10 Machine Destruction 3 | . . . . . . . . . . . . . . . . . . . . . . . 3 Programmers 10 | . . . . . . . . . . . . . . . . . 3 . . . . . 7 Fabnet Peak Effective % . | . . . . . . . . . . . . . . . . . . . . . . . . Robots Rewired 6 | . . . . . . . . . . . . . . 2 . . . . 2 . 2 . . Allies Hacked 4 | . . . . . . . 1 . . . . . . . . . 1 . . . . 1 1 Hacks Repelled 1 | . . . . . . . . . . . . . . . . . . . . . . . 1 Allies | -11 -10 -10 -9 -9 -7 -6 -6 -6 -6 -6 -5 -5 -5 -5 -5 -4 -4 -4 -4 -4 -3 -3 -2 -------- Run | Yrd Mat Min Mat Min Zio Pro Fac Low Low Dat Pro Fac Upp Upp Zhi Pro Fac Upp Upp War Pro Res Res Total Allies 36 | . . . . 2 6 . 1 . . . . 4 . 2 . . 5 . 2 . 2 2 10 Largest Group 7 | . . . . 2 6 6 5 2 . . . 4 . 2 2 2 3 . 2 2 2 4 7 Highest-Rated Group 650 | . . . . 40 222 222 175 70 . . . 272 . 79 79 79 189 . 60 60 111 317 650 Highest-Rated Ally 115 | . . . . 31 42 42 42 42 . . . 85 . 49 49 49 81 . 30 30 64 103 115 Zionite Dispatches 12 | . . . . . . . 1 . . . . 2 . . . . 4 . . . . 1 4 Heavy 2 | . . . . . . . . . . . . 1 . . . . . . . . . 1 . Light 1 | . . . . . . . . . . . . . . . . . . . . . . . 1 Fire 1 | . . . . . . . . . . . . . . . . . . . . . . . 1 Hacker 3 | . . . . . . . . . . . . 1 . . . . 1 . . . . . 1 Kinetic Resupply 1 | . . . . . . . 1 . . . . . . . . . . . . . . . . Explosive Resupply 1 | . . . . . . . . . . . . . . . . . 1 . . . . . . Defense Resupply 1 | . . . . . . . . . . . . . . . . . . . . . . . 1 Infowar Resupply 2 | . . . . . . . . . . . . . . . . . 2 . . . . . . Total Orders 12 | . . . . . . . 2 . . . . . . . . . 4 . . . . 2 4 STAY 2 | . . . . . . . . . . . . . . . . . 1 . . . . 1 . FOLLOW 1 | . . . . . . . . . . . . . . . . . . . . . . 1 . DROP 5 | . . . . . . . 1 . . . . . . . . . 3 . . . . . 1 PICKUP 1 | . . . . . . . 1 . . . . . . . . . . . . . . . . EXPLORE 3 | . . . . . . . . . . . . . . . . . . . . . . . 3 Ally Attacks 246 | . . . . 4 . 32 24 9 . . . 24 . . . 11 28 . . . . 19 95 Total Damage 8022 | . . . . 82 . 543 269 131 . . . 1771 . . . 276 647 . . . . 727 3576 Kills 44 | . . . . 2 . 3 1 . . . . 7 . . . 1 4 . . . . 4 22 Allies Corrupted 4 | . . . . . . . 1 . . . . . . . . . 2 . . . . 1 . Allies Melted 1 | . . . . . . . . . . . . . . . . . . . . 1 . . . Intel | -11 -10 -10 -9 -9 -7 -6 -6 -6 -6 -6 -5 -5 -5 -5 -5 -4 -4 -4 -4 -4 -3 -3 -2 ------- Run | Yrd Mat Min Mat Min Zio Pro Fac Low Low Dat Pro Fac Upp Upp Zhi Pro Fac Upp Upp War Pro Res Res Active Infowar (turns) 15530 | . . . 565 . . . 47 1387 1285 248 1515 671 1082 844 261 270 1434 626 532 977 469 459 2858 Sensors 9820 | . . . . . . . 47 1387 1285 248 1515 671 1082 844 261 270 . . . . . 359 1851 IFF 2 | . . . . . . . . . . . . . . . . . . . . . . 2 . Terrain 2902 | . . . . . . . . . . . . 310 . . . . 1434 626 532 . . . . Structural 565 | . . . 565 . . . . . . . . . . . . . . . . . . . . Traps 2648 | . . . . . . . . . . . . . . . . . 527 . . . . 336 1785 Decoding 864 | . . . . . . . . . . . . . . . . . . . . 864 . . . Cloaking 4131 | . . . . . . . . . . . . . . . . . . . . 869 244 456 2562 Jamming 413 | . . . . . . . . . . . . . . . . . . . . . 291 122 . ECM 387 | . . . . . . . . . . . . . . . . . . . 50 . . . 337 Robot Analysis Total 8 | . 2 . 2 . . . . . . . . . . . 4 . . . . . . . . Derelict Logs Recovered 15 | . . . . 1 3 1 . 2 3 . 2 . 1 1 . . . 1 . . . . . Drone Launches 6 | . . . . . . . . . . . . . . . . . . . . . . . 6 Drone Recoveries 6 | . . . . . . . . . . . . . . . . . . . . . . . 6 Zionite Intel Received 1 | . . . . . . . . . . . . 1 . . . . . . . . . . . Component Stockpiles 1 | . . . . . . . . . . . . 1 . . . . . . . . . . . Exploration | -11 -10 -10 -9 -9 -7 -6 -6 -6 -6 -6 -5 -5 -5 -5 -5 -4 -4 -4 -4 -4 -3 -3 -2 ------------- Run | Yrd Mat Min Mat Min Zio Pro Fac Low Low Dat Pro Fac Upp Upp Zhi Pro Fac Upp Upp War Pro Res Res Turns Passed 23505 | 54 1319 399 1264 388 1802 521 579 1435 1704 248 1613 717 1127 1057 376 894 1456 659 645 1073 533 459 3183 Spaces Moved 12414 | 43 706 199 703 210 1044 279 257 703 615 95 583 367 559 544 250 363 858 481 513 859 307 363 1513 Core 90 | 1 . . . . . . . . . . . . . . . . . . . . . . 89 Treads 6574 | . 570 74 417 210 1044 279 257 330 615 95 583 367 559 317 . 316 129 . . . . . 412 Legs 4451 | . . . . . . . . . . . . . . 227 250 42 397 481 513 859 307 363 1012 Wheels 1299 | 42 136 125 286 . . . . 373 . . . . . . . 5 332 . . . . . . Hover . | . . . . . . . . . . . . . . . . . . . . . . . . Flight . | . . . . . . . . . . . . . . . . . . . . . . . . Fastest Speed 50 | 50 100 115 85 170 170 165 167 135 250 255 245 160 164 118 118 160 112 112 115 110 107 107 50 Average Speed 159 | 98 148 135 147 170 170 169 178 186 253 255 254 169 180 161 132 208 144 113 115 112 108 108 135 Slowest Speed 400 | 100 160 240 250 170 170 170 247 247 255 255 256 240 245 400 173 320 240 115 117 117 110 109 340 Overloaded Moves . | . . . . . . . . . . . . . . . . . . . . . . . . Propulsion Burnouts . | . . . . . . . . . . . . . . . . . . . . . . . . Robots Hopped . | . . . . . . . . . . . . . . . . . . . . . . . . Potential Cave-ins 4 | . . . . . . . . . . . . . . . . . . . . . . . 4 Cave-ins Triggered . | . . . . . . . . . . . . . . . . . . . . . . . . Teleports 1 | . . . . . . . . . . . . . . . . . . . . . . . 1 Exploration Rate (%) 55 | 3 96 36 64 53 88 55 8 84 83 69 75 9 72 73 62 56 22 69 70 88 52 6 49 Regions Visited 23 Branch Regions 16 Pre-discovered Areas 11 | . 1 . 1 . 1 1 . 1 2 1 . . . . 3 . . . . . . . . Known Exits Taken 19 | . 1 . 1 . 1 . 1 1 1 1 1 1 1 1 1 1 1 1 1 1 1 1 . Unknown Exits Taken 4 | 1 . 1 . 1 . 1 . . . . . . . . . . . . . . . . . Scrap Searched 18 | . . 1 . . 1 . . 2 4 . 3 . 2 1 . 2 . 1 1 . . . . Spaces Dug 65 | . . . . . . . 1 2 . . 1 . . 3 . . . . . . . 5 53 Terrain Destroyed 658 | . . . . . . . 1 4 1 . 41 . 79 63 . 32 3 109 67 86 67 6 99 Melee . | . . . . . . . . . . . . . . . . . . . . . . . . Projectile 170 | . . . . . . . 1 4 1 . 12 . . 5 . 32 3 . 1 . 6 6 99 AOE 488 | . . . . . . . . . . . 29 . 79 58 . . . 109 66 86 61 . . Terrain Rammed . | . . . . . . . . . . . . . . . . . . . . . . . . Walls Destroyed . | . . . . . . . . . . . . . . . . . . . . . . . . Machines Disabled . | . . . . . . . . . . . . . . . . . . . . . . . . Actions | -11 -10 -10 -9 -9 -7 -6 -6 -6 -6 -6 -5 -5 -5 -5 -5 -4 -4 -4 -4 -4 -3 -3 -2 --------- Run | Yrd Mat Min Mat Min Zio Pro Fac Low Low Dat Pro Fac Upp Upp Zhi Pro Fac Upp Upp War Pro Res Res Total 14834 | 51 863 284 848 239 1071 307 361 762 691 102 656 432 620 644 285 421 1007 536 546 937 458 412 2301 Wait 892 | . 77 43 22 26 24 8 62 4 18 . 23 9 11 6 2 3 26 4 5 . 52 21 446 Move 12392 | 42 705 198 703 209 1043 278 256 702 614 94 582 366 558 543 249 362 857 480 512 858 306 362 1513 Hop . | . . . . . . . . . . . . . . . . . . . . . . . . Pick Up 201 | 3 10 9 27 1 . 4 11 8 7 . 3 11 6 3 8 5 25 7 1 9 2 4 37 Fast Attach 96 | 6 5 . 4 . 2 . . . 1 4 1 8 . 3 3 6 6 2 2 14 . 6 23 Attach 129 | . 1 3 5 . . . 7 . 5 . 3 12 2 12 5 4 14 5 3 8 5 3 32 Detach 19 | . . . . . . . . . . . 1 2 . 2 3 . 1 . . 5 1 2 2 Swap 147 | . 5 3 11 . . 2 7 8 9 . 5 2 9 5 . 7 19 5 4 4 3 3 36 Drop 189 | . 4 4 29 1 2 4 8 . 7 4 2 7 2 2 3 3 26 5 1 17 1 3 54 Fire 670 | . 56 24 47 2 . 11 10 39 30 . 36 15 32 42 12 31 30 28 11 21 27 8 158 Melee . | . . . . . . . . . . . . . . . . . . . . . . . . Ram . | . . . . . . . . . . . . . . . . . . . . . . . . Kick . | . . . . . . . . . . . . . . . . . . . . . . . . Crush . | . . . . . . . . . . . . . . . . . . . . . . . . Escape Stasis 3 | . . . . . . . . . . . . . . . . . 3 . . . . . . Rewire 96 | . . . . . . . . 1 . . . . . 26 . . . . 7 1 61 . . Trap . | . . . . . . . . . . . . . . . . . . . . . . . . Miscellaneous . | . . . . . . . . . . . . . . . . . . . . . . . . Route ------- -11/Scrapyard -10/Materials (discovered 5 exits: *Mat x3 / *Min x2) -10/Mines -9/Materials (discovered 5 exits: [*Mat] / *Min x2 / *Sto x2) -9/Mines (discovered 2 exits: [*Mat] / *Zio) -7/Zion (discovered 2 exits: Dee / *Pro) -6/Proximity Caves -6/Factory (discovered 2 exits: *Low x2) -6/Lower Caves -6/Lower Caves -6/Data Miner -5/Proximity Caves -5/Factory -5/Upper Caves -5/Upper Caves (discovered 2 exits: *Fac / *Zhi) -5/Zhirov -4/Proximity Caves -4/Factory -4/Upper Caves -4/Upper Caves -4/Warlord -3/Proximity Caves -3/Research -2/Research History --------- Turn | Location | Event 12 | -11/Scrapyard | Discovered new exit (range 16) 55 | -11/Scrapyard | Entered Materials 153 | -10/Materials | Discovered new exit (range 4) 155 | -10/Materials | Central database locked down 318 | -10/Materials | Build established: Mutant 376 | -10/Materials | Discovered new exit (range 16) 487 | -10/Materials | Discovered new exit (range 6) 645 | -10/Materials | Identified exit to Mines 863 | -10/Materials | Build established: Scavenger-Mutant 1108 | -10/Materials | Discovered new exit (range 10) 1374 | -10/Materials | Entered Mines 1375 | -10/Mines | Assembled infested the area 1425 | -10/Mines | Build established: Mutant 1673 | -10/Mines | Discovered new exit (range 14) 1687 | -10/Mines | Met a Derelict shopkeep closing up shop 1773 | -10/Mines | Entered Materials 1773 | -9/Materials | Evolved 2 slots: Utility x2 1986 | -9/Materials | Discovered new exit (range 16) 2136 | -9/Materials | Discovered new exit (range 8) 2177 | -9/Materials | Identified exit to Mines 2177 | -9/Materials | Identified exit to Storage 2406 | -9/Materials | Discovered new exit (range 14) 2942 | -9/Materials | Central database locked down 3037 | -9/Materials | Entered Mines 3158 | -9/Mines | Discovered new exit (range 5) 3347 | -9/Mines | Received a Rocket Launcher from a helpful Derelict 3365 | -9/Mines | A Derelict revealed a hidden shortcut to a safe place 3383 | -9/Mines | Learned 2 Materials zone layouts 3425 | -9/Mines | Entered Zion 3425 | -7/Zion | Accompanied by 2 allies 3475 | -7/Zion | Led the pair of lost Derelicts to a safe place 3652 | -7/Zion | Learned Factory security intel 3700 | -7/Zion | Learned location of Warlord (-4) 3771 | -7/Zion | Received a visual enhancement algorithm 3773 | -7/Zion | Ran a visual enhancement algorithm 3802 | -7/Zion | Gained Derelict followers 3975 | -7/Zion | Identified exit to Proximity Caves 4047 | -7/Zion | Identified exit to Deep Caves 4120 | -7/Zion | Met Imprinter 4157 | -7/Zion | Imprinted 4159 | -7/Zion | Declared Zion's savior 5104 | -7/Zion | Given the Hacking Drone Bay 5227 | -7/Zion | Entered Proximity Caves 5227 | -6/Proximity Caves | Accompanied by 6 allies 5287 | -6/Proximity Caves | Attracted the attention of an 0b10 checkpoint 5396 | -6/Proximity Caves | Spotted B-75 Beast 5419 | -6/Proximity Caves | Core integrity fell below 50% 5424 | -6/Proximity Caves | Spotter reported a threat 5432 | -6/Proximity Caves | Allies destroyed B-75 Beast 5690 | -6/Proximity Caves | Discovered new exit (range 12) 5748 | -6/Proximity Caves | Entered Factory 5748 | -6/Factory | Accompanied by 4 allies 5748 | -6/Factory | Evolved 6 slots: Power x1, Propulsion x2, Utility x1, Weapon x2 5793 | -6/Factory | Zion Kinetic Resupply teleported in 5914 | -6/Factory | Discovered new exit (range 14) 6053 | -6/Factory | Build established: Scavenger-Tank 6212 | -6/Factory | Discovered new exit (range 13) 6282 | -6/Factory | Identified exit to Lower Caves 6327 | -6/Factory | Entered Lower Caves 6327 | -6/Lower Caves | Accompanied by 2 allies 6575 | -6/Lower Caves | Build established: Scavenger-Skirmisher 7549 | -6/Lower Caves | Encountered a Warlord checkpoint 7572 | -6/Lower Caves | Learned Factory stockpile data 7602 | -6/Lower Caves | Entered a destroyed Warlord outpost 7670 | -6/Lower Caves | Discovered new exit (range 7) 7679 | -6/Lower Caves | Identified exit to Lower Caves 7762 | -6/Lower Caves | Entered another Lower Caves area 7920 | -6/Lower Caves | Found Prototype Device 9286 | -6/Lower Caves | Lost 3 parts (1u2w) 9368 | -6/Lower Caves | Discovered new exit (range 14) 9409 | -6/Lower Caves | Learned Factory garrison access intel 9459 | -6/Lower Caves | Identified exit to Data Miner 9466 | -6/Lower Caves | Entered Data Miner 9469 | -6/Data Miner | Discovered new exit (range 6) 9517 | -6/Data Miner | Met Data Miner 9560 | -6/Data Miner | Learned location of Section 7 (-2) 9560 | -6/Data Miner | Acquired the access code to Warlord's prototype stash 9604 | -6/Data Miner | Received God Mode back door access code from Data Miner 9712 | -6/Data Miner | Identified exit to Proximity Caves 9714 | -6/Data Miner | Entered Proximity Caves 9737 | -5/Proximity Caves | Learned Factory terminal intel 10680 | -5/Proximity Caves | Identified exit to Factory 11259 | -5/Proximity Caves | Spotted B-75 Beast 11327 | -5/Proximity Caves | Entered Factory 11327 | -5/Factory | Evolved 2 slots: Propulsion x2 11329 | -5/Factory | Loaded intel: 26 terminal locations 11330 | -5/Factory | Loaded intel: 4 garrison access locations 11351 | -5/Factory | Lost 9 parts (2p4n1u2w) 11465 | -5/Factory | Zion Heavy squad teleported in 11581 | -5/Factory | Retrieved Zion intel report: Component Stockpiles 11582 | -5/Factory | Zion Hacker squad teleported in 11704 | -5/Factory | Discovered new exit (range 15) 11811 | -5/Factory | Identified exit to Upper Caves 11917 | -5/Factory | Found Prototype Protection 11917 | -5/Factory | Identified Zio. Weapon Casing 11940 | -5/Factory | Lost 3 allies 12044 | -5/Factory | Entered Upper Caves 12276 | -5/Upper Caves | Destroyed 7 combat bots 12676 | -5/Upper Caves | Encountered a Warlord checkpoint 12702 | -5/Upper Caves | Learned Factory emergency access door positions 12988 | -5/Upper Caves | Attracted the attention of an 0b10 checkpoint 13024 | -5/Upper Caves | Discovered new exit (range 10) 13039 | -5/Upper Caves | Identified exit to Upper Caves 13171 | -5/Upper Caves | Entered another Upper Caves area 13234 | -5/Upper Caves | Discovered new exit (range 8) 13242 | -5/Upper Caves | Identified exit to Factory 13613 | -5/Upper Caves | Attracted the attention of an 0b10 outpost 13644 | -5/Upper Caves | Destroyed 7 combat bots 13744 | -5/Upper Caves | Lost 11 parts (1p3n1u6w) 13750 | -5/Upper Caves | Destroyed 7 combat bots 14113 | -5/Upper Caves | Learned location of 1 exit from Factory 14155 | -5/Upper Caves | Build established: Skirmisher 14186 | -5/Upper Caves | Discovered new exit (range 9) 14194 | -5/Upper Caves | Identified exit to Zhirov 14213 | -5/Upper Caves | Found Alien Artifact 14213 | -5/Upper Caves | Identified Core Expander 14213 | -5/Upper Caves | Installed Core Expander, added new Weapon slot 14228 | -5/Upper Caves | Entered Zhirov 14228 | -5/Zhirov | Accompanied by 2 allies 14231 | -5/Zhirov | Discovered new exit (range 3) 14284 | -5/Zhirov | Learned location of Quarantine (-2) 14284 | -5/Zhirov | Learned location of Testing (-3) 14284 | -5/Zhirov | Learned location of Command (-1) 14315 | -5/Zhirov | Found Alien Artifact 14315 | -5/Zhirov | Identified Integrated Dissipator 14315 | -5/Zhirov | Installed Integrated Dissipator, increased core heat dissipation (+20) 14332 | -5/Zhirov | Found Alien Artifact 14602 | -5/Zhirov | Identified exit to Proximity Caves 14604 | -5/Zhirov | Entered Proximity Caves 14604 | -4/Proximity Caves | Accompanied by 2 allies 14606 | -4/Proximity Caves | Spotter reported a threat 14607 | -4/Proximity Caves | Spotter reported a threat 14739 | -4/Proximity Caves | Acquired the password to a Derelict Tinkerer's latest research 14874 | -4/Proximity Caves | Caught by Unaware searching for contraband prototypes 14911 | -4/Proximity Caves | Caught by Unaware searching for contraband prototypes 14956 | -4/Proximity Caves | System corruption reached 10% 14962 | -4/Proximity Caves | Lost 6 parts (1p3n1u1w) 15221 | -4/Proximity Caves | Build established: Scavenger-Tank 15490 | -4/Proximity Caves | Discovered exit to Factory (range 5) 15498 | -4/Proximity Caves | Entered Factory 15498 | -4/Factory | Evolved 2 slots: Utility x2 15499 | -4/Factory | Identified exit to Upper Caves 15748 | -4/Factory | Search patrols dispatched 15988 | -4/Factory | Zion Explosive Resupply teleported in 15995 | -4/Factory | Found Prototype Launcher 15996 | -4/Factory | Identified Mni. Smartbomb Launcher 16167 | -4/Factory | Lost 3 parts (1n2u) 16230 | -4/Factory | Zion Hacker squad teleported in 16396 | -4/Factory | Build established: Tank 16593 | -4/Factory | Spotted B-86 Titan 16681 | -4/Factory | Zion Infowar Resupply teleported in 16723 | -4/Factory | Zion Infowar Resupply teleported in 16785 | -4/Factory | Build established: Scavenger-Tank 16894 | -4/Factory | Terminal network hard line cut 16954 | -4/Factory | Entered Upper Caves 17013 | -4/Upper Caves | Attracted the attention of an 0b10 checkpoint 17103 | -4/Upper Caves | Encountered a Warlord checkpoint 17168 | -4/Upper Caves | Spotted B-86 Titan 17184 | -4/Upper Caves | Destroyed B-86 Titan 17206 | -4/Upper Caves | Found Hvy. Reflective Plating 17382 | -4/Upper Caves | Learned Research emergency access door positions 17594 | -4/Upper Caves | Discovered new exit (range 9) 17612 | -4/Upper Caves | Identified exit to Upper Caves 17613 | -4/Upper Caves | Entered another Upper Caves area 17674 | -4/Upper Caves | Encountered a Warlord checkpoint 17922 | -4/Upper Caves | Spotted B-86 Titan 18096 | -4/Upper Caves | Attracted the attention of an 0b10 outpost 18168 | -4/Upper Caves | Destroyed 12 combat bots 18177 | -4/Upper Caves | Lost 6 parts (1n2u3w) 18218 | -4/Upper Caves | Discovered new exit (range 15) 18253 | -4/Upper Caves | Identified exit to Warlord 18258 | -4/Upper Caves | Entered Warlord 18258 | -4/Warlord | Accompanied by 2 allies 18301 | -4/Warlord | System corruption cleaned by Quarantine Array 18303 | -4/Warlord | System corruption reached 10% 18316 | -4/Warlord | System corruption cleaned by Quarantine Array 18430 | -4/Warlord | Received a Watcher feed algorithm from an ecstatic Tinkerer 18453 | -4/Warlord | Opened Warlord's prototype stash 18458 | -4/Warlord | Found Prototype Reactor 18462 | -4/Warlord | Found Prototype Device 18462 | -4/Warlord | Identified Exp. Cloaking Device 18478 | -4/Warlord | Found Prototype Hackware 18481 | -4/Warlord | Found Prototype Processor 18925 | -4/Warlord | Identified Exp. Target Analyzer 18950 | -4/Warlord | Warlord's base attacked by MAIN.C 19029 | -4/Warlord | Found Prototype Energy Cannon 19029 | -4/Warlord | Identified Vortex Cannon 19032 | -4/Warlord | Found Vortex Cannon 19124 | -4/Warlord | Rebuked by Warlord 19133 | -4/Warlord | Build established: Derelict-Gunner 19212 | -4/Warlord | Warlord forces counterattacked 19266 | -4/Warlord | Spotted B-86 Titan 19272 | -4/Warlord | Spotted B-90 Cyclops 19276 | -4/Warlord | Destroyed B-86 Titan 19283 | -4/Warlord | Destroyed B-90 Cyclops 19316 | -4/Warlord | Lost 10 allies 19316 | -4/Warlord | Discovered new exit (range 15) 19330 | -4/Warlord | Identified exit to Proximity Caves 19331 | -4/Warlord | Entered Proximity Caves 19412 | -3/Proximity Caves | Lost 4 allies 19485 | -3/Proximity Caves | Attracted the attention of an 0b10 outpost 19678 | -3/Proximity Caves | Attracted the attention of an 0b10 checkpoint 19838 | -3/Proximity Caves | Discovered new exit (range 12) 19851 | -3/Proximity Caves | Identified exit to Research 19857 | -3/Proximity Caves | Build established: Infiltrator-Tank 19864 | -3/Proximity Caves | Entered Research 19864 | -3/Research | Accompanied by 2 allies 19864 | -3/Research | Evolved 2 slots: Power x1, Utility x1 19880 | -3/Research | Discovered new exit (range 4) 19884 | -3/Research | Identified exit to Research 20078 | -3/Research | Zion Heavy squad teleported in 20294 | -3/Research | Build established: Skirmisher 20316 | -3/Research | Garrison activated, responded to threat 20323 | -3/Research | Entered another Research area 20323 | -2/Research | Accompanied by 3 allies 20323 | -2/Research | Evolved 2 slots: Utility x2 20450 | -2/Research | Zion Hacker squad teleported in 20590 | -2/Research | Zion Light squad teleported in 20630 | -2/Research | Build established: Scavenger-Skirmisher 21052 | -2/Research | Zion Fire squad teleported in 21138 | -2/Research | Build established: Messiah-Skirmisher 21229 | -2/Research | Lost 4 allies 21279 | -2/Research | Cargo convoy interrupted 21280 | -2/Research | Spotted Striker 21286 | -2/Research | Identified Transdimensional Reconstructor 21286 | -2/Research | Warped through subspace 21315 | -2/Research | Lost 3 allies 21323 | -2/Research | First assault squad dispatched 21636 | -2/Research | Zion Defense Resupply teleported in 21643 | -2/Research | Found Exp. Thermal Shield 21687 | -2/Research | System corruption reached 10% 21785 | -2/Research | Terminal network hard line cut 22038 | -2/Research | Build established: Skirmisher 22201 | -2/Research | Destroyed 8 combat bots 22205 | -2/Research | Lost 4 parts (4u) 22345 | -2/Research | Destroyed 7 combat bots 22391 | -2/Research | Lost 13 parts (4p1n5u3w) 22464 | -2/Research | Spotted B-90 Cyclops 22489 | -2/Research | Destroyed B-90 Cyclops 22512 | -2/Research | Lost 3 parts (1u2w) 22725 | -2/Research | Build established: Scavenger-Tank 22829 | -2/Research | System corruption reached 30% 23347 | -2/Research | Lost 4 parts (2u2w) 23349 | -2/Research | Incoming assault squad redirected 23449 | -2/Research | Spotted B-90 Cyclops 23462 | -2/Research | Released all parts (7) 23465 | -2/Research | Core integrity fell below 50% 23488 | -2/Research | Core integrity fell below 20% 23491 | -2/Research | Lost 9 parts (2p3n2u2w) 23506 | -2/Research | Destroyed by Fusion Bomb Trap Last Messages --------------- 23462_ Released Adv. Signal Interpreter. 23462_ Released Exp. Cloaking Device. 23462_ Released Graphene Brace. 23462_ Meson Extractor disabled. 23463_ K-01 Serf collects debris. 23469_ C-45 Heavy ARC bursts open, deploying its payload. 23469_ G-73 Enforcer unfolds itself. 23469_ E-15 Imp unfolds itself. 23473_ B-90 Cyclops activates siege mode. 23473_ E-15 Imp destroyed. 23475_ System corrupted: Energy discharge (-40). 23491_ OHEDGK0S FEEEPQ YVF XQ%XD/=#LAHFPVRE= 23491_ ALERT: Potential suspicious activity detected, Programmers report to Research Zone 3X. 23500_ W-44 Eye sends out distress signal. 23506_ HYU5OR2LBTU%4Q6VMB7BH G49Y 23506_ Triggered Fusion Bomb Trap. 23506_ An explosion rips through the floor. Map ----- +----------------------------------------------------+ | ?????????????? "" # #"########??????? | | ??????????????? "" # ###?????????????? | | ?????????????????? # #???????????????? | | ????????????????? ?# #???????????????? | | ???????????????? ??# #???????????????? | | ???????????????#"#???# #???????????????? | | ???????????????#?????# #???????????????? | | ?????????????????????# #???????????????? | | ?????????????????????# #???????????????? | | ?????????????????????# #???????????????? | | ?????????????????????# #???????????????? | | ?????????????????????# #???????????????? | | ?????????????????????# #???????????????? | | ?????????????#???????# #???????????????? | | ?????????????# ??????# #???????????????? | | ???????????###+####### #???????????????? | | ???????????# + +???????????????? | | ???????????# # #???????????????? | | ???????????# # #???????????????? | | ???????????# # #???????????????? | | ???????????# # #???????????????? | | ???????????# # #######?????????? | | ???????????# # # ! """????????? | | ???????????# # # ""?????????? | | ???????????######+#"## # ""?????????? | | ???????????# ] # ^ @# ??????????? | | ???????????# # # ??????????? | | ???????????# # #? ???????????? | | ???????????# # #? ???????????? | | #################+#### ###+####????????? | | p s #????????? | | #????????? | | = #????????? | | !%| #????????? | | %######"######+############# #????????? | | ##! #? ??????????# #????????? | | ## !! # !]????????# #????????? | | ## # %#???????# #????????? | | ## ! # ]#???????# #????????? | | ## G # #???????# #????????? | | ## """ # #???????# #????????? | | #### " # " " #???????# #????????? | | #### # "Y" #?????### ###??????? | | """# # """ !#?????# #??????? | | = """# #+############## "" #??????? | | =!= "# ? #??????# + T +??????? | | =!*"F"##?######??????# # ] #??????? | | **]"""#??????????????# ??# % #??????? | | !*=####???????? ?????####????## ##??????? | | =!="##????????? ??????????????# #???????? | +----------------------------------------------------+ Best States ------------- Heat Dissipation 138 Energy Generation 83 Energy Capacity 825 Matter Stores 300 Matter Capacity 300 Sight Range 16 Robot Scan Range 16 Terrain Scan Range 20 Terrain Scan Density 10 ECM Strength 2 Jamming Range 14 Cloak Strength 4 Power Amplification 30 Base Temperature (-) 200 Armor Coverage 1200 Resistance: KI 30 Resistance: TH 30 Resistance: EM 20 Utility Shielding 66 Phase Shifting 15 Evasion (%) 93 Target Analysis 10 Core Analysis 6 Recoil Reduction 6 Particle Charging 25 Offensive Hacking 10 Item Schematics ----------------- Hvy. Machine Gun | -7/Zion | Archive Imp. EM Pulse Cannon | -7/Zion | Archive Imp. Deuterium Engine | -7/Zion | Archive Lgt. Fission Core | -7/Zion | Archive Imp. Corruption Screen | -7/Zion | Archive Adv. Sensor Array | -7/Zion | Archive Powered Hammer | -7/Zion | Archive Adv. Heat Sink | -7/Zion | Archive Imp. Melee Analysis Suite | -7/Zion | Archive Angular Momentum Engine | -7/Zion | Archive Imp. Cooling System | -7/Zion | Archive Proton Missile Launcher | -7/Zion | Archive Field Propulsion Drive | -7/Zion | Archive Combat Drone Bay | -6/Data Miner | Free Lgt. Regenerative Plating | -6/Data Miner | Free Exp. Cesium-ion Thruster | -6/Data Miner | Free Imp. Matter Compressor | -6/Data Miner | Free Cld. Plasma Rifle | -6/Data Miner | Free Imp. Gyrokinetic Inverter | -6/Data Miner | Free Adv. Datajack | -6/Data Miner | Free Imp. Antigrav System | -6/Data Miner | Free Imp. Linear Gravjet | -6/Data Miner | Free Imp. Armor Integrity Analyzer | -6/Data Miner | Free Assault Drone Bay | -5/Zhirov | Free Exp. Optical Array | -5/Zhirov | Free Exp. Heat Sink | -5/Zhirov | Free Imp. Arc Thrower | -5/Zhirov | Free Robot Schematics ------------------ R-06 Scavenger | -7/Zion | Archive K-01 Serf | -7/Zion | Archive L-41 Fighter | -7/Zion | Archive Y-54 Guardian | -6/Data Miner | Free R-10 Processor | -6/Data Miner | Free E-15 Imp | -6/Data Miner | Free Y-64 Sentinel | -6/Data Miner | Free Fabricated ------------ Nothing Repaired ---------- Nothing Studied --------- Wheel | -9/Materials | Hacked Com. Wheel | -9/Materials | Hacked Particle Gun | -9/Materials | Hacked Med. Laser | -9/Materials | Hacked Beam Rifle | -9/Materials | Hacked Hvy. Assault Rifle | -9/Materials | Hacked Thunder Leg | -4/Factory | Hacked Enh. Nova Cannon | -2/Research | Hacked Enh. Quantum Rifle | -2/Research | Hacked Alien Tech Used ----------------- Core Expander Integrated Dissipator Transdimensional Reconstructor Achievements -------------- Friend Of Zion Challenges ------------ None Game ------ Seed CentriumDecoyMonowheel Manual? 0 Play Time 03:14:46 Cumulative 240.6 hours Start 2026.08.14 @ 19:10:54 End 2026.08.15 @ 00:22:56 Sessions 1 Manual Loads 0 Difficulty Rogue Special Mode None Game No. 241 Rogue 187 Adventurer 54 Explorer 0 Win Type - Total 11 Types 7/0/1/1/0/0/0/1/0/1 Lore% 75 Gallery% 63 Achievement% 59 Wizard Run 0 Options --------- Layout 1 ASCII 0 Keyboard 0 Movement Mouse Keybinds 1 Fullscreen 2 Font 32/Tamsyn Map View 50x35 Zoom Use 0% Tactical HUD 1 Map Filters NONE Filters NONE Steam 1 RUN: 1798613d-320a-4834-a579-dac9fdebd281